[Event "Mitropa Cup Open 2024"]
[Site "Apolda"]
[Date "2024.02.20"]
[Round "6.9"]
[White "Haring, Filip"]
[Black "Vykouk, Jan"]
[Result "1/2-1/2"]
[ECO "B90"]
[WhiteElo "2432"]
[BlackElo "2493"]
[Annotator "TA"]
[PlyCount "54"]
[EventDate "2024.02.15"]
[EventType "team-tourn"]
[EventCountry "GER"]
[SourceTitle "playchess.com"]
[Source "ChessBase"]
[SourceQuality "1"]
[WhiteTeam "Slovakia"]
[BlackTeam "Czech Republic"]
[WhiteTeamCountry "SVK"]
[BlackTeamCountry "CZE"]
[TimeControl "40/5400+30:1800+30"]

{[%evp 11,54,15,18,3,9,-15,-12,-9,-20,-35,0,0,0,0,0,-75,-50,-49,-44,-48,-60,-84,-78,-91,-100,-105,-102,-104,-31,-47,-29,-55,-45,-66,-66,-66,0,-39,0,0,0,-34,0,0,0]} 1. e4 {[%emt 0:00:02]} c5 {[%emt 0:00:05]} 2. Nf3 {[%emt 0:00:05]} d6 {[%emt 0:00:09]} 3. d4 {[%emt 0:00:05]} cxd4 {[%emt 0:00:05]} 4. Nxd4 {[%emt 0:00:04]} Nf6 {[%emt 0:00:06]} 5. Nc3 {[%emt 0:00:03]} a6 {[%emt 0:00:22]} 6. h3 {[%emt 0:00:08]} e5 {[%emt 0:00:06]} 7. Nf3 {[%emt 0:00:04]} Be7 {[%emt 0:00:07]} 8. g4 {[%emt 0:00:24]} h6 {[%emt 0:00:04]} 9. g5 {[%emt 0:01:09]} hxg5 {[%emt 0:00:08]} 10. Nxg5 {[%emt 0:00:04]} b5 {[%emt 0:02:53][%cal Bb7b5,Bb5b4][%mdl 32] Wards off Bc4} (10... Bg4 $5 11. f3 Be6 $11) 11. Rg1 {[%emt 0:07:54]} Bb7 {[%emt 0:03:30]} 12. Be3 $1 {[%emt 0:01:08]} Qc7 {[%emt 0:02:32]} 13. a4 {[%emt 0:08:36]} (13. Qd2 $11) 13... b4 $17 {[%emt 0:01:31]} 14. Nd5 {[%emt 0:00:07]} Nxd5 {[%emt 0:01:00]} 15. exd5 {[%emt 0:00:05]} Nd7 {[%emt 0:00:59]} 16. Ne4 {[%emt 0:21:51]} g6 {[%emt 0:14:33]} 17. c4 {[%emt 0:06:33] [#]} bxc3 $1 {[%emt 0:00:06]} 18. Nxc3 {[%emt 0:00:05]} Nf6 {[%emt 0:02:48]} 19. a5 {[%emt 0:06:45]} Rh4 {[%emt 0:09:18]} (19... Kf8 $17 20. Ra4 Kg7) 20. Ra4 $15 {[%emt 0:09:24]} Rxa4 {[%emt 0:03:15]} 21. Qxa4+ {[%emt 0:00:06]} Qd7 {[%emt 0:00:34]} 22. Qb3 {[%emt 0:01:26]} Bd8 {[%emt 0:01:07]} 23. Qa2 {[%emt 0:04:34]} Rc8 {[%emt 0:08:06]} ({Black should try} 23... Kf8 $15) 24. Rg3 {[%emt 0:05:33]} Qf5 {[%emt 0:04:52]} 25. Qa4+ {[%emt 0:02:09]} Qd7 $1 {[%emt 0:05:22][%cal Od7a4] [#] White must now prevent ...Qxa4!} 26. Qa2 {[%emt 0:00:33]} Qf5 {[%emt 0:13:48]} 27. Qa4+ {[%emt 0:00:04]} Qd7 {[%emt 0:00:52] Weighted Error Value: White=0.14 (very precise) /Black=0.14 (very precise) .  Mistake:       	White=1     	Black=2      Inaccurate:     	White=2     	Black=2      OK:         	White=5     	Black=9      Best:        	White=1     	Black=2      Strong:       	White=1     	Black=2} 1/2-1/2

[Event "Mitropa Cup Open 2024"]
[Site "Apolda"]
[Date "2024.02.20"]
[Round "6.10"]
[White "Kraus, Tomas"]
[Black "Turcan, Richard"]
[Result "1-0"]
[ECO "B13"]
[WhiteElo "2484"]
[BlackElo "2393"]
[Annotator "TA"]
[PlyCount "110"]
[EventDate "2024.02.15"]
[EventType "team-tourn"]
[EventCountry "GER"]
[SourceTitle "playchess.com"]
[Source "ChessBase"]
[SourceQuality "1"]
[WhiteTeam "Czech Republic"]
[BlackTeam "Slovakia"]
[WhiteTeamCountry "CZE"]
[BlackTeamCountry "SVK"]
[TimeControl "40/5400+30:1800+30"]

{[%evp 31,110,44,45,42,46,36,53,58,62,60,54,53,54,47,64,62,64,55,49,64,65,74,76,62,67,51,41,47,38,36,28,0,0,0,122,135,125,93,231,250,230,356,449,254,325,178,198,203,162,100,314,124,137,122,64,8,5,0,0,0,249,221,486,468,1229,1419,1253,975,1470,1415,2217,1484,4133,2368,7104,5947,29984,29985,29985,29985,29991]} 1. c4 {[%emt 0:00:19]} c5 {[%emt 0:01:45]} 2. Nc3 {[%emt 0:01:57]} Nc6 {[%emt 0:00:41]} 3. e3 {[%emt 0:02:01]} Nf6 {[%emt 0:08:52]} 4. d4 {[%emt 0:00:17]} cxd4 {[%emt 0:02:32]} 5. exd4 {[%emt 0:00:07]} d5 {[%emt 0:00:40]} 6. Bg5 {[%emt 0:00:14]} Be6 {[%emt 0:11:30]} 7. a3 {[%emt 1:29:05] 7.Be2 gains popularity.} g6 {[%emt 0:03:36] B13: Caro-Kann: Exchange Variation and Panov-Botvinnik Attack.} 8. Bxf6 {[%emt 0:00:00]} exf6 {[%emt 0:00:39]} 9. g3 {[%emt 0:00:00]} Bh6 {[%emt 0:25:39]} 10. Bg2 {[%emt 0:00:00]} Ne7 {[%emt 0:01:06]} 11. c5 {[%emt 0:00:00]} O-O {[%emt 0:01:36]} 12. Nge2 {[%emt 0:00:00]} Qd7 {[%emt 0:04:03]} 13. Qa4 $146 {[%emt 0:00:00]} ({Predecessor:} 13. O-O Bh3 14. Qd3 a6 15. Bxh3 Qxh3 16. Qf3 Rae8 17. Nf4 Bxf4 18. Qxf4 Kg7 19. Rfe1 {0-1 Szabo,K (2492)-Prohaszka,P (2470) Budapest FS10 GM 2007 (2)}) 13... Qxa4 {[%emt 0:08:16]} 14. Nxa4 {[%emt 0:00:00]} Rfe8 {[%emt 0:03:21]} 15. Nac3 {[%emt 0:00:00]} Nc6 {[%emt 0:06:03]} 16. Rd1 {[%emt 0:00:00]} (16. Bxd5 Bxd5 (16... Nxd4 17. Bxe6 Rxe6 18. Kf1 $17) 17. Nxd5 Nxd4 18. Nxf6+ Kf8 $17) 16... Rad8 {[%emt 0:00:30]} 17. b4 {[%emt 0:00:00]} Kg7 {[%emt 0:00:19]} 18. h3 {[%emt 0:00:00]} Bf5 {[%emt 0:02:13]} 19. f4 $1 {[%emt 0:00:00]} ({Much worse is} 19. Nxd5 Bc2 $11) (19. Bxd5 Rxd5 20. Nxd5 Be4 21. Nxf6 (21. Nc7 Re7 $11) 21... Kxf6 $15) 19... Bc2 {[%emt 0:01:00]} 20. Rd2 {[%emt 0:00:00]} Bb3 {[%emt 0:00:02]} 21. Kf2 {[%emt 0:00:00]} Bc4 {[%emt 0:02:50]} 22. Re1 {[%emt 0:00:00]} g5 {[%emt 0:06:06]} 23. fxg5 {[%emt 0:00:00]} Bxg5 {[%emt 0:00:07]} 24. Nf4 {[%emt 0:00:00]} Rxe1 {[%emt 0:00:06]} 25. Kxe1 {[%emt 0:00:00]} Bxf4 {[%emt 0:00:43]} 26. gxf4 {[%emt 0:09:30]} Ne7 (26... a5 27. b5 Ne7 28. Bf1 Bxf1 29. Kxf1) 27. Kf2 {[%emt 0:00:00]} Ng6 {[%emt 0:05:40]} 28. Kg3 {[%emt 0:00:00]} f5 {[%emt 0:00:44]} 29. b5 {[%emt 0:01:30]} Kf6 30. a4 {[%emt 0:00:00]} h5 {[%emt 0:01:56]} 31. Rf2 {[%emt 0:00:00]} h4+ {[%emt 0:00:00]} 32. Kf3 {[%emt 0:00:00]} Bd3 {[%emt 0:02:47]} (32... Rg8 $11 {keeps the balance.}) 33. Ke3 $16 {[%emt 0:00:59]} Be4 {[%emt 0:00:01]} 34. Bf3 {[%emt 0:00:50]} Nf8 {[%emt 0:01:29]} (34... Bxf3 $16 35. Rxf3 Ne7) 35. Bxe4 $18 {[%emt 0:00:34]} fxe4 {[%emt 0:00:02]} 36. f5 {[%emt 0:00:32]} Kg5 {[%emt 0:00:59]} 37. a5 {[%emt 0:00:31]} (37. c6 $142 bxc6 38. bxc6) 37... Nh7 {[%emt 0:00:19]} 38. b6 {[%emt 0:00:31]} (38. a6 $142 bxa6 39. bxa6) 38... axb6 $18 {[%emt 0:00:33]} 39. axb6 {[%emt 0:00:02]} Nf6 {[%emt 0:00:09] [#]} 40. Nb5 {[%emt 0:00:55]} (40. Rg2+ $1 $18 Kxf5 41. Nb5) 40... Ra8 $2 {[%emt 0:01:03]} (40... Nh5 $16) 41. Rb2 $2 {[%emt 0:12:49]} (41. Rg2+ $18 {is more deadly.} Kxf5 42. Rg7) 41... Nd7 $16 {[%emt 0:06:03]} 42. Rg2+ {[%emt 0:10:13]} Kxf5 {[%emt 0:05:31]} 43. Rf2+ {[%emt 0:01:27]} ({Better is} 43. Rg4 $14) 43... Kg6 $11 {[%emt 0:00:25]} 44. Nd6 {[%emt 0:01:55]} Ra3+ {[%emt 0:01:06]} 45. Kf4 {[%emt 0:01:08]} Rg3 $2 {[%emt 0:08:35]} (45... Rd3 $1 $11) 46. Nxb7 $18 {[%emt 0:01:23]} Kf6 $2 {[%emt 0:00:25]} (46... f6 {was necessary.} 47. Rf1 Rb3) 47. Nd6 $18 {[%emt 0:01:24]} Nf8 {[%emt 0:00:29]} (47... Nxb6 $142 48. cxb6 Rb3) 48. Nxe4+ $18 {[%emt 0:00:58]} dxe4 {[%emt 0:00:13]} 49. Kxe4+ {[%emt 0:00:52]} Ke7 {[%emt 0:01:49]} 50. c6 {[%emt 0:01:03]} Ne6 {[%emt 0:01:22]} 51. d5 {[%emt 0:02:16]} Nc5+ {[%emt 0:05:23]} 52. Kd4 {[%emt 0:00:04]} Nb3+ {[%emt 0:01:46]} 53. Kc4 {[%emt 0:00:11]} Kd6 {[%emt 0:00:24]} 54. c7 {[%emt 0:01:15]} Na5+ {[%emt 0:01:34]} 55. Kb5 {[%emt 0:00:27]} Kxd5 {[%emt 0:02:58]} 1-0

[Event "Mitropa Cup Open 2024"]
[Site "Apolda"]
[Date "2024.02.20"]
[Round "6.11"]
[White "Bochnicka, Vladimir"]
[Black "Gnojek, Petr"]
[Result "0-1"]
[ECO "B08"]
[WhiteElo "2398"]
[BlackElo "2428"]
[Annotator "TA"]
[PlyCount "84"]
[EventDate "2024.02.15"]
[EventType "team-tourn"]
[EventCountry "GER"]
[SourceTitle "playchess.com"]
[Source "ChessBase"]
[SourceQuality "1"]
[WhiteTeam "Slovakia"]
[BlackTeam "Czech Republic"]
[WhiteTeamCountry "SVK"]
[BlackTeamCountry "CZE"]
[TimeControl "40/5400+30:1800+30"]

{[%evp 16,84,2,0,5,0,0,-51,0,0,0,0,38,29,43,0,10,8,25,0,43,0,0,0,45,0,0,0,0,0,30,-15,-16,-73,-71,-67,-68,-143,-161,-277,-263,-402,-397,-433,-432,-429,-417,-535,-533,-528,-514,-850,-833,-793,-1068,-1065,-839,-1126,-1331,-1554,-1439,-1866,-1766,-1181,-1098,-29969,-29964,-29963,-29962,-29974,-29960]} 1. e4 {[%emt 0:00:03]} d6 {[%emt 0:00:19]} 2. d4 {[%emt 0:00:14]} Nf6 {[%emt 0:00:06]} 3. Nc3 {[%emt 0:00:13]} g6 {[%emt 0:00:15]} 4. Nf3 {[%emt 0:01:02]} Bg7 {[%emt 0:00:09]} 5. Be3 {[%emt 0:00:51]} c6 {[%emt 0:02:19]} 6. Qd2 {[%emt 0:01:44]} b5 {[%emt 0:02:33]} 7. Bd3 {[%emt 0:01:42]} Bg4 {[%emt 0:04:45]} 8. O-O-O {[%emt 0:08:29]} O-O {[%emt 0:04:45]} 9. Bh6 {[%emt 0:07:19]} e5 $1 {[%emt 0:04:25]} 10. dxe5 {[%emt 0:08:59]} dxe5 {[%emt 0:00:07]} 11. h4 {[%emt 0:00:34]} (11. Ne2 $11) 11... Na6 {[%emt 0:12:16]} ({Better is} 11... Qe7 $15) 12. Ne2 $11 {[%emt 0:10:43]} Qe7 {[%emt 0:08:06]} 13. Ng3 {[%emt 0:04:13]} Nh5 {[%emt 0:06:55]} 14. Nxh5 $1 {[%emt 0:08:19]} gxh5 {[%emt 0:07:47]} 15. Be3 {[%emt 0:13:11]} Rfd8 {[%emt 0:03:44]} 16. Qc3 {[%emt 0:01:51][%cal Od3e2]} Nb4 {[%emt 0:02:38]} 17. Kb1 {[%emt 0:02:03] Threatens to win with Bc5.} a5 {[%emt 0:00:57]} 18. a3 {[%emt 0:02:30]} Nxd3 {[%emt 0:04:34]} 19. Rxd3 {[%emt 0:01:05]} b4 {[%emt 0:02:11]} 20. Qc5 {[%emt 0:01:28]} Qxc5 {[%emt 0:05:25]} 21. Bxc5 {[%emt 0:00:05]} Rxd3 {[%emt 0:00:56]} 22. cxd3 {[%emt 0:00:05]} b3 {[%emt 0:00:09]} 23. Bb6 {[%emt 0:10:32] Repels Rd8} a4 $36 {[%emt 0:07:02][%mdl 2048] Black has some pressure.} 24. Rc1 {[%emt 0:04:23] [#]} (24. Kc1 $11 {remains equal.}) 24... Bxf3 $1 $17 {[%emt 0:00:24]} 25. gxf3 {[%emt 0:00:04][%mdl 4096] Endgame. KRB-KRB} Bf6 {[%emt 0:00:04]} 26. Bc7 {[%emt 0:06:43] [#] White is now going downhill.} (26. Be3 $15) 26... Rc8 $1 {[%emt 0:02:29]} 27. Ba5 {[%emt 0:01:56]} (27. Bb6 {is a better defense.}) 27... Bxh4 $19 {[%emt 0:02:25]} 28. Rh1 {[%emt 0:00:29]} (28. Bb6 $142) 28... Bxf2 {[%emt 0:01:15]} 29. Rxh5 {[%emt 0:00:24]} f6 {[%emt 0:01:02]} 30. Kc1 {[%emt 0:00:14]} c5 {[%emt 0:03:55]} 31. Kd2 {[%emt 0:01:15]} Bd4 {[%emt 0:02:26]} 32. Bc3 {[%emt 0:00:04]} Rc7 {[%emt 0:03:15] Strongly threatening ...Rg7.} 33. f4 {[%emt 0:01:14]} (33. Rh6 $142 Rg7 34. Bxd4 Rg2+ (34... exd4 $2 35. Rxf6 Rg2+ 36. Kc1 $19) (34... cxd4 $2 35. Rh2 $19) 35. Kc1 exd4 (35... cxd4 36. Rxf6 Rc2+ 37. Kd1 $19) 36. Rxf6 Rc2+ 37. Kd1 Rxb2 38. Ra6) 33... exf4 {[%emt 0:00:20] ...Rg7 is the strong threat.} 34. Rf5 {[%emt 0:01:38]} Rg7 {[%emt 0:00:27] Hoping for ...Rg2+.} 35. Bxd4 {[%emt 0:00:04]} cxd4 {[%emt 0:00:03]} 36. Rxf6 {[%emt 0:01:15] KR-KR} Rg2+ {[%emt 0:00:26]} 37. Kc1 {[%emt 0:00:27]} Rc2+ {[%emt 0:00:32]} 38. Kb1 {[%emt 0:00:38]} Rf2 {[%emt 0:02:16][%cal Rf2f1]} 39. Kc1 {[%emt 0:00:04]} Kg7 {[%emt 0:01:33]} 40. e5 {[%emt 0:00:18]} h5 {[%emt 0:00:30] Black mates.} 41. Rf5 {[%emt 0:30:50]} h4 {[%emt 0:30:31]} 42. Rh5 {[%emt 0:00:00]} Rc2+ {[%emt 0:00:00] Weighted Error Value: White=0.66/Black=0.12 (very precise) .  Mistake:       	White=6     	Black=1      Inaccurate:     	White=4     	Black=4      OK:         	White=6     	Black=8      Best:        	---       	Black=3      Strong:       	White=1     	Black=2} 0-1

[Event "Mitropa Cup Open 2024"]
[Site "Apolda"]
[Date "2024.02.20"]
[Round "6.13"]
[White "Plenca, Jadranko"]
[Black "Subelj, Jan"]
[Result "1/2-1/2"]
[ECO "B11"]
[WhiteElo "2429"]
[BlackElo "2512"]
[Annotator "TA"]
[PlyCount "61"]
[EventDate "2024.02.15"]
[EventType "team-tourn"]
[EventCountry "GER"]
[SourceTitle "playchess.com"]
[Source "ChessBase"]
[SourceQuality "1"]
[WhiteTeam "Croatia"]
[BlackTeam "Slovenia"]
[WhiteTeamCountry "CRO"]
[BlackTeamCountry "SLO"]
[TimeControl "40/5400+30:1800+30"]

{[%evp 10,61,18,16,20,0,37,12,23,10,17,17,16,15,14,4,13,0,0,0,0,0,0,0,0,-12,0,-10,0,0,0,0,0,0,0,0,0,0,0,0,0,0,0,0,8,8,8,8,8,8,15,0,15,0]} 1. e4 {[%emt 0:00:04]} c6 {[%emt 0:00:27]} 2. Nc3 {[%emt 0:01:44]} d5 {[%emt 0:00:14]} 3. Nf3 {[%emt 0:00:06]} dxe4 {[%emt 0:00:41]} 4. Nxe4 {[%emt 0:00:11]} Nf6 {[%emt 0:00:08]} 5. Qe2 {[%emt 0:00:10]} Nxe4 {[%emt 0:00:14]} 6. Qxe4 {[%emt 0:00:06]} Qd5 {[%emt 0:00:31] Prevents Bc4.} 7. Qh4 {[%emt 0:01:23]} Qf5 {[%emt 0:00:32]} 8. Bd3 {[%emt 0:06:11]} Qg4 {[%emt 0:02:52]} 9. Qg3 {[%emt 0:07:27]} (9. Bxh7 $2 {too greedy.} Qxg2 (9... Qxh4 $2 10. Nxh4 Rxh7 11. Nf3 $19) 10. Rg1 Qxf3 $19) 9... h5 $1 {[%emt 0:24:19] The position is equal.} 10. Ne5 {[%emt 0:14:42]} Qxg3 {[%emt 0:00:07]} 11. hxg3 {[%emt 0:00:04]} Nd7 {[%emt 0:00:17]} 12. Nxd7 {[%emt 0:00:46]} Bxd7 {[%emt 0:00:06]} 13. b3 {[%emt 0:00:33]} g6 {[%emt 0:03:58]} 14. Bb2 {[%emt 0:03:41] Prevents Bg7.} Rg8 {[%emt 0:00:06]} 15. O-O-O {[%emt 0:03:01]} Bg7 {[%emt 0:04:35]} 16. Rhe1 {[%emt 0:04:10]} Bxb2+ {[%emt 0:00:19]} 17. Kxb2 {[%emt 0:00:04]} Be6 {[%emt 0:04:46]} 18. Be4 {[%emt 0:04:38]} Bd5 {[%emt 0:03:29]} 19. d4 {[%emt 0:00:50]} e6 {[%emt 0:00:38]} 20. c4 {[%emt 0:01:00]} Bxe4 {[%emt 0:00:05]} 21. Rxe4 $11 {[%emt 0:00:02][%mdl 4096] Endgame. KRR-KRR} O-O-O {[%emt 0:00:27]} 22. Kc3 {[%emt 0:12:57]} Rd7 {[%emt 0:00:53]} 23. Rd3 {[%emt 0:06:25]} Kd8 {[%emt 0:03:15]} 24. b4 {[%emt 0:09:56]} Ke7 {[%emt 0:00:11]} 25. a4 {[%emt 0:01:07]} Rgd8 {[%emt 0:00:41]} 26. Rde3 {[%emt 0:06:03]} a6 {[%emt 0:03:25]} 27. a5 {[%emt 0:01:13]} Rd6 {[%emt 0:00:30]} 28. Rd3 {[%emt 0:02:07]} Kf6 {[%emt 0:00:58]} 29. Rf3+ {[%emt 0:00:45]} Ke7 {[%emt 0:00:05]} 30. Rd3 {[%emt 0:00:07]} Kf6 {[%emt 0:00:04]} 31. Rf3+ {[%emt 0:00:04] An uneventful encounter.   Weighted Error Value: White=0.05 (flawless) /Black=0.04 (flawless) .  Inaccurate:     	---       	Black=1      OK:         	White=9     	Black=10     Strong:       	---       	Black=1} 1/2-1/2

[Event "Mitropa Cup Open 2024"]
[Site "Apolda"]
[Date "2024.02.20"]
[Round "6.14"]
[White "Goroshkov, Maksym"]
[Black "Ivekovic, Bozidar"]
[Result "1/2-1/2"]
[ECO "C47"]
[WhiteElo "2338"]
[BlackElo "2399"]
[Annotator "RC"]
[PlyCount "126"]
[EventDate "2024.02.15"]
[EventType "team-tourn"]
[EventCountry "GER"]
[SourceTitle "playchess.com"]
[Source "ChessBase"]
[SourceQuality "1"]
[WhiteTeam "Slovenia"]
[BlackTeam "Croatia"]
[WhiteTeamCountry "SLO"]
[BlackTeamCountry "CRO"]
[TimeControl "40/5400+30:1800+30"]

1. e4 {[%emt 0:02:16]} e5 {[%emt 0:00:05]} 2. Nf3 {[%emt 0:00:45]} Nc6 {[%emt 0:00:06]} 3. d4 {[%emt 0:01:28]} exd4 {[%emt 0:00:04]} 4. Nxd4 {[%emt 0:00:05]} Nf6 {[%emt 0:00:03]} 5. Nc3 {[%emt 0:00:08]} Bb4 {[%emt 0:00:04]} 6. Nxc6 {[%emt 0:00:19]} bxc6 {[%emt 0:00:04]} 7. Bd3 {[%emt 0:00:06]} d5 {[%emt 0:00:34]} 8. exd5 {[%emt 0:00:50]} cxd5 {[%emt 0:00:06]} 9. O-O {[%emt 0:00:22]} O-O {[%emt 0:00:05]} 10. h3 {[%emt 0:01:18]} c6 {[%emt 0:08:28]} 11. Qf3 {[%emt 0:02:39]} Bd6 {[%emt 0:08:45]} 12. Bf4 {[%emt 0:03:18]} Be6 {[%emt 0:07:21]} 13. Ne2 {[%emt 0:04:18]} c5 {[%emt 0:03:24]} 14. c3 {[%emt 0:01:23]} a5 {[%emt 0:05:21]} 15. Bc2 {[%emt 0:08:04]} Qb6 {[%emt 0:09:30]} 16. b3 {[%emt 0:02:30]} Rfe8 {[%emt 0:04:21]} 17. Rfe1 {[%emt 0:03:08]} Bf8 {[%emt 0:04:49]} 18. Ng3 {[%emt 0:06:25]} g6 {[%emt 0:14:20]} 19. Bg5 {[%emt 0:05:07]} Nd7 {[%emt 0:00:48]} 20. Nh5 {[%emt 0:01:04]} gxh5 {[%emt 0:03:47]} 21. Qxh5 {[%emt 0:00:09]} f5 {[%emt 0:00:34]} 22. g4 {[%emt 0:08:06]} Bf7 {[%emt 0:02:17]} 23. Qh4 {[%emt 0:00:03]} Ne5 {[%emt 0:04:08]} 24. Qg3 {[%emt 0:00:05]} f4 {[%emt 0:00:24]} 25. Bxf4 {[%emt 0:03:56]} Ng6 {[%emt 0:00:16]} 26. h4 {[%emt 0:01:03]} Bg7 {[%emt 0:03:47]} 27. Bd2 {[%emt 0:00:14]} d4 {[%emt 0:05:50]} 28. h5 {[%emt 0:03:19]} Nf8 {[%emt 0:00:03]} 29. cxd4 {[%emt 0:02:05]} Bxd4 {[%emt 0:00:28]} 30. Rad1 {[%emt 0:00:48]} Rxe1+ {[%emt 0:03:20]} 31. Rxe1 {[%emt 0:00:05]} Re8 {[%emt 0:00:06]} 32. Rxe8 {[%emt 0:02:33]} Bxe8 {[%emt 0:00:04]} 33. Qf4 {[%emt 0:08:37]} Qd8 {[%emt 0:08:53]} 34. Be3 {[%emt 0:04:57]} Bf7 {[%emt 0:02:54]} 35. Kg2 {[%emt 0:05:58]} Bd5+ {[%emt 0:01:48]} 36. f3 {[%emt 0:00:06]} Ne6 {[%emt 0:00:33]} 37. Qh6 {[%emt 0:00:30]} Bxe3 {[%emt 0:00:12]} 38. Qxe3 {[%emt 0:02:00]} Qf6 {[%emt 0:00:21]} 39. Bf5 {[%emt 0:00:15]} Nd4 {[%emt 0:01:13]} 40. Be4 {[%emt 0:00:28]} Be6 {[%emt 0:00:33]} 41. g5 {[%emt 0:30:30]} Qf7 {[%emt 0:12:10]} 42. g6 {[%emt 0:00:00]} hxg6 {[%emt 0:00:08]} 43. hxg6 {[%emt 0:00:00]} Qf6 {[%emt 0:01:24]} 44. Qh6 {[%emt 0:00:00]} Nf5 {[%emt 0:02:35]} 45. Bxf5 {[%emt 0:00:00]} Bxf5 {[%emt 0:00:08]} 46. Qh7+ {[%emt 0:00:00]} Kf8 {[%emt 0:00:05]} 47. Qc7 {[%emt 0:00:00]} Qg5+ {[%emt 0:05:02]} 48. Kf2 {[%emt 0:00:00]} Bxg6 {[%emt 0:01:41]} 49. Qxa5 {[%emt 0:00:00]} Qh4+ {[%emt 0:00:42]} 50. Kg2 {[%emt 0:00:00]} Qd4 {[%emt 0:00:22]} 51. Qc7 {[%emt 0:00:00]} Bf7 {[%emt 0:00:16]} 52. Qa7 {[%emt 0:00:00]} Bd5 {[%emt 0:00:24]} 53. Qb8+ {[%emt 0:00:00]} Kf7 {[%emt 0:00:20]} 54. Qc7+ {[%emt 0:00:00]} Kf6 {[%emt 0:00:27]} 55. Qd8+ {[%emt 0:00:00]} Kf5 {[%emt 0:00:42]} 56. Qf8+ {[%emt 0:00:00]} Kg5 {[%emt 0:00:45]} 57. Kf1 {[%emt 0:00:00]} Qa1+ {[%emt 0:10:58]} 58. Kf2 {[%emt 0:00:00]} Qd4+ {[%emt 0:00:46]} 59. Kg2 {[%emt 0:00:00]} Qd2+ {[%emt 0:00:34]} 60. Kg3 {[%emt 0:00:00]} Qe1+ {[%emt 0:00:17]} 61. Kg2 {[%emt 0:00:00]} Qe5 {[%emt 0:00:51]} 62. Kf2 {[%emt 0:00:00]} Qh2+ {[%emt 0:00:17]} 63. Kf1 {[%emt 0:00:00]} Qe5 {[%emt 0:00:44]} 1/2-1/2